[Event "FIDE WSTC Open 50 2025"]
[Site "Prague"]
[Date "2025.02.20"]
[Round "4.33"]
[White "Lesiege, Alexandre"]
[Black "Muir, Andrew J"]
[Result "1-0"]
[Annotator "RC"]
[ECO "B63"]
[WhiteElo "2504"]
[BlackElo "2166"]
[PlyCount "87"]
[EventDate "2025.02.17"]
[EventType "team-tourn"]
[EventCountry "CZE"]
[SourceTitle "playchess.com"]
[Source "ChessBase"]
[SourceQuality "1"]
[TimeControl "40/5400+30:1800+30"]

1. e4 {[%emt 0:00:21]} c5 {[%emt 0:00:20]} 2. Nf3 {[%emt 0:00:06]} Nc6 {[%emt 0:00:05]} 3. d4 {[%emt 0:00:20]} cxd4 {[%emt 0:00:06]} 4. Nxd4 {[%emt 0:00:06]} Nf6 {[%emt 0:00:05]} 5. Nc3 {[%emt 0:00:08]} d6 {[%emt 0:00:05]} 6. Bg5 {[%emt 0:00:14]} e6 {[%emt 0:00:20]} 7. Qd2 {[%emt 0:01:08]} Be7 {[%emt 0:00:26]} 8. O-O-O {[%emt 0:01:16]} O-O {[%emt 0:00:08]} 9. h4 {[%emt 0:04:17]} a6 {[%emt 0:01:16]} 10. Nxc6 {[%emt 0:00:32]} bxc6 {[%emt 0:00:07]} 11. Rh3 {[%emt 0:00:06]} e5 {[%emt 0:02:22]} 12. Rd3 {[%emt 0:03:06]} Be6 {[%emt 0:11:17]} 13. Rxd6 {[%emt 0:01:58]} Bxd6 {[%emt 0:03:32]} 14. Qxd6 {[%emt 0:00:06]} Qb6 {[%emt 0:27:16]} 15. Be3 {[%emt 0:05:24]} Qa5 {[%emt 0:04:22]} 16. Qxc6 Rfc8 {[%emt 0:10:31]} 17. Qb6 {[%emt 0:26:29]} Qxb6 {[%emt 0:00:59]} 18. Bxb6 {[%emt 0:01:38]} Rc6 {[%emt 0:12:40]} 19. Ba5 {[%emt 0:04:39]} Rac8 {[%emt 0:04:17]} 20. f3 {[%emt 0:02:58]} Bc4 {[%emt 0:01:13]} 21. Bxc4 {[%emt 0:06:02]} Rxc4 {[%emt 0:00:10]} 22. Bb6 {[%emt 0:13:37]} h6 {[%emt 0:04:36]} 23. Rd2 {[%emt 0:05:39]} Kf8 {[%emt 0:01:19]} 24. Nd1 {[%emt 0:02:15]} R4c6 {[%emt 0:02:30]} 25. Ba5 {[%emt 0:03:22]} Ke7 {[%emt 0:03:49]} 26. Ne3 {[%emt 0:00:24]} g6 {[%emt 0:01:16]} 27. b3 {[%emt 0:01:44]} Ke6 {[%emt 0:02:18]} 28. c4 {[%emt 0:00:38]} Rd6 {[%emt 0:01:24]} 29. Nd5 {[%emt 0:00:14]} Nxd5 {[%emt 0:03:41]} 30. exd5+ {[%emt 0:00:05]} Kf5 {[%emt 0:00:06]} 31. Kb2 {[%emt 0:00:47]} e4 {[%emt 0:00:27]} 32. fxe4+ {[%emt 0:00:14]} Kxe4 {[%emt 0:00:04]} 33. Kc3 {[%emt 0:01:43]} f5 {[%emt 0:00:40]} 34. Re2+ {[%emt 0:00:31]} Kf4 {[%emt 0:00:06]} 35. Kd4 {[%emt 0:00:13]} g5 {[%emt 0:00:32]} 36. c5 {[%emt 0:01:50]} Rd7 {[%emt 0:00:17]} 37. hxg5 {[%emt 0:01:30]} hxg5 {[%emt 0:00:13]} 38. d6 {[%emt 0:00:18]} g4 {[%emt 0:01:06]} 39. Re7 {[%emt 0:03:33]} Rxe7 {[%emt 0:02:32]} 40. dxe7 {[%emt 0:00:05]} Re8 {[%emt 0:00:07]} 41. Bd8 {[%emt 0:31:08]} Kg3 {[%emt 0:31:13]} 42. c6 {[%emt 0:00:05]} f4 {[%emt 0:00:35]} 43. c7 {[%emt 0:00:05]} Kxg2 {[%emt 0:00:00]} 44. c8=Q {[%emt 0:00:00]} 1-0

[Event "FIDE WSTC Open 50 2025"]
[Site "Prague"]
[Date "2025.02.20"]
[Round "4.34"]
[White "Farrell, Neil"]
[Black "Duong, Thanh Nha"]
[Result "1-0"]
[Annotator "ChessBase"]
[ECO "D30"]
[WhiteElo "2116"]
[BlackElo "2168"]
[PlyCount "95"]
[EventDate "2025.02.17"]
[EventType "team-tourn"]
[EventCountry "CZE"]
[SourceTitle "playchess.com"]
[Source "ChessBase"]
[SourceQuality "1"]
[TimeControl "40/5400+30:1800+30"]

1. d4 {[%emt 0:00:03]} d5 {[%emt 0:00:36]} 2. c4 {[%emt 0:00:14]} e6 {[%emt 0:00:06]} 3. Nf3 {[%emt 0:00:18]} Nf6 {[%emt 0:01:10]} 4. g3 {[%emt 0:00:11]} Bb4+ {[%emt 0:01:51]} 5. Bd2 {[%emt 0:00:17]} Be7 {[%emt 0:00:11]} 6. Bg2 {[%emt 0:02:01]} O-O {[%emt 0:02:23]} 7. O-O {[%emt 0:00:11]} c6 {[%emt 0:00:14]} 8. Qc2 {[%emt 0:00:38]} b6 {[%emt 0:01:26]} 9. Bf4 {[%emt 0:04:48]} Bb7 {[%emt 0:01:20]} 10. Rd1 {[%emt 0:00:58]} Nbd7 {[%emt 0:02:18]} 11. Ne5 {[%emt 0:02:52]} Rc8 {[%emt 0:04:48]} 12. Nc3 {[%emt 0:18:18]} Nh5 {[%emt 0:06:55]} 13. Nxd7 {[%emt 0:18:40]} Qxd7 {[%emt 0:00:18]} 14. Qa4 {[%emt 0:00:17]} Nxf4 {[%emt 0:04:18]} 15. gxf4 {[%emt 0:01:14]} Qc7 {[%emt 0:04:11]} 16. cxd5 {[%emt 0:04:10]} exd5 {[%emt 0:05:38]} 17. e3 {[%emt 0:00:16]} Qb8 {[%emt 0:06:25]} 18. Rd2 {[%emt 0:05:46]} Rfd8 {[%emt 0:01:03]} 19. Bh3 {[%emt 0:04:27]} Rc7 {[%emt 0:00:34]} 20. Qd1 {[%emt 0:00:15]} Rd6 {[%emt 0:01:50]} 21. Kh1 {[%emt 0:01:41]} Rh6 {[%emt 0:00:50]} 22. Qf3 {[%emt 0:01:03]} Bb4 {[%emt 0:02:21]} 23. Rc2 {[%emt 0:08:44]} Qd8 {[%emt 0:00:40]} 24. Rg1 {[%emt 0:01:04]} Bxc3 {[%emt 0:07:05]} 25. Rxc3 {[%emt 0:01:21]} c5 {[%emt 0:05:24]} 26. f5 {[%emt 0:10:42]} Qh4 {[%emt 0:08:30]} 27. Qg2 {[%emt 0:04:28]} Qf6 {[%emt 0:03:11]} 28. Bg4 {[%emt 0:01:31]} c4 {[%emt 0:12:29]} 29. Bf3 {[%emt 0:01:22]} Rd7 {[%emt 0:01:00]} 30. b3 {[%emt 0:01:03]} b5 {[%emt 0:00:16]} 31. bxc4 {[%emt 0:00:24]} bxc4 {[%emt 0:00:12]} 32. Ra3 {[%emt 0:00:40]} g6 {[%emt 0:07:51]} 33. Ra5 {[%emt 0:02:19]} Kg7 {[%emt 0:02:15]} 34. Rc5 {[%emt 0:01:16]} Qd8 {[%emt 0:02:17]} 35. Qg3 {[%emt 0:01:16]} Rd6 {[%emt 0:01:54]} 36. Rb1 {[%emt 0:00:38]} Bc6 {[%emt 0:01:18]} 37. Qe5+ {[%emt 0:01:18]} f6 {[%emt 0:00:38]} 38. Qg3 {[%emt 0:00:16]} g5 {[%emt 0:01:49]} 39. Ra5 {[%emt 0:01:06]} Rd7 {[%emt 0:01:18]} 40. Rc5 {[%emt 0:00:38]} Bb7 {[%emt 0:01:01]} 41. Rcb5 {[%emt 0:09:14]} Bc6 {[%emt 0:05:38]} 42. Rc5 {[%emt 0:04:12]} Bb7 {[%emt 0:00:09]} 43. Rxb7 {[%emt 0:01:33]} Rxb7 {[%emt 0:00:37]} 44. Bxd5 {[%emt 0:00:13]} Rd7 {[%emt 0:05:31]} 45. Be6 {[%emt 0:01:35]} Rd6 {[%emt 0:00:32]} 46. Rc8 Qxc8 {[%emt 0:04:44]} 47. Bxc8 {[%emt 0:03:18]} Rc6 {[%emt 0:00:02]} 48. Qb8 {[%emt 0:00:28]} 1-0

[Event "FIDE WSTC Open 50 2025"]
[Site "Prague"]
[Date "2025.02.20"]
[Round "4.35"]
[White "Berube, Richard"]
[Black "Neave, George"]
[Result "1/2-1/2"]
[Annotator "NA"]
[ECO "E81"]
[WhiteElo "2121"]
[BlackElo "2074"]
[PlyCount "57"]
[EventDate "2025.02.17"]
[EventType "team-tourn"]
[EventCountry "CZE"]
[SourceTitle "playchess.com"]
[Source "ChessBase"]
[SourceQuality "1"]
[TimeControl "40/5400+30:1800+30"]

1. d4 {[%emt 0:00:08]} Nf6 {[%emt 0:00:05]} 2. c4 {[%emt 0:00:14]} g6 {[%emt 0:00:06]} 3. Nc3 {[%emt 0:00:12]} Bg7 {[%emt 0:00:05]} 4. e4 {[%emt 0:01:30]} d6 {[%emt 0:01:10]} 5. f3 {[%emt 0:00:15]} O-O {[%emt 0:00:16]} 6. Be3 {[%emt 0:00:19]} c5 {[%emt 0:00:31]} 7. d5 {[%emt 0:03:39]} e6 {[%emt 0:00:14]} 8. Bd3 {[%emt 0:00:42]} exd5 {[%emt 0:00:18]} 9. cxd5 {[%emt 0:00:07]} Nbd7 {[%emt 0:14:45]} 10. Qd2 {[%emt 0:10:55]} Ne5 {[%emt 0:01:26]} 11. Be2 {[%emt 0:00:59]} a6 {[%emt 0:06:45]} 12. a4 {[%emt 0:00:15]} Rb8 {[%emt 0:02:41]} 13. Bh6 {[%emt 0:04:22]} Nxe4 {[%emt 0:01:19]} 14. Nxe4 {[%emt 0:01:39]} Qh4+ {[%emt 0:00:57]} 15. g3 {[%emt 0:01:11]} Qxh6 {[%emt 0:00:28]} 16. Qxh6 {[%emt 0:02:09]} Bxh6 {[%emt 0:00:08]} 17. f4 {[%emt 0:00:15]} Nd7 {[%emt 0:02:47]} 18. Nxd6 {[%emt 0:00:27]} Bg7 {[%emt 0:05:00]} 19. O-O-O {[%emt 0:09:42]} Nb6 {[%emt 0:02:42]} 20. a5 {[%emt 0:03:32]} Rd8 {[%emt 0:02:09]} 21. Nxf7 {[%emt 0:02:08]} Rxd5 {[%emt 0:03:48]} 22. Nf3 {[%emt 0:05:27]} Rxd1+ {[%emt 0:05:03]} 23. Rxd1 {[%emt 0:00:08]} Kxf7 {[%emt 0:00:16]} 24. axb6 {[%emt 0:01:56]} Bf6 {[%emt 0:11:10]} 25. Rd5 {[%emt 0:04:26]} Be7 {[%emt 0:03:38]} 26. Ng5+ {[%emt 0:09:08]} Kg7 {[%emt 0:03:00]} 27. Re5 {[%emt 0:01:08]} Bd6 {[%emt 0:01:11]} 28. Rd5 {[%emt 0:02:33]} Be7 {[%emt 0:00:11]} 29. Re5 {[%emt 0:10:00]} 1/2-1/2

[Event "FIDE WSTC Open 50 2025"]
[Site "Prague"]
[Date "2025.02.20"]
[Round "4.36"]
[White "Sanger, Mark"]
[Black "Pineault, Denis"]
[Result "1-0"]
[Annotator "ChessBase"]
[ECO "B23"]
[WhiteElo "2135"]
[BlackElo "2270"]
[PlyCount "79"]
[EventDate "2025.02.17"]
[EventType "team-tourn"]
[EventCountry "CZE"]
[SourceTitle "playchess.com"]
[Source "ChessBase"]
[SourceQuality "1"]
[TimeControl "40/5400+30:1800+30"]

1. e4 {[%emt 0:00:05]} c5 {[%emt 0:00:18]} 2. Nc3 {[%emt 0:00:04]} Nc6 {[%emt 0:00:17]} 3. f4 {[%emt 0:00:05]} g6 {[%emt 0:00:30]} 4. Nf3 {[%emt 0:00:07]} Bg7 {[%emt 0:00:06]} 5. Bc4 {[%emt 0:00:10]} e6 {[%emt 0:01:44]} 6. f5 {[%emt 0:00:24]} gxf5 {[%emt 0:05:45]} 7. d3 {[%emt 0:00:36]} Nge7 {[%emt 0:04:56]} 8. O-O {[%emt 0:00:13]} d5 {[%emt 0:01:36]} 9. exd5 {[%emt 0:01:07]} exd5 {[%emt 0:00:16]} 10. Bb3 {[%emt 0:00:33]} Be6 {[%emt 0:03:38]} 11. Qe1 {[%emt 0:10:03]} Qd7 {[%emt 0:06:36]} 12. Bf4 {[%emt 0:15:18]} a6 {[%emt 0:00:54]} 13. Na4 {[%emt 0:04:19]} Ng6 {[%emt 0:04:17]} 14. Nb6 {[%emt 0:09:31]} Qd8 {[%emt 0:05:24]} 15. Nxd5 {[%emt 0:05:49]} O-O {[%emt 0:01:48]} 16. Bg5 {[%emt 0:03:55]} Qd6 {[%emt 0:00:54]} 17. Nc3 {[%emt 0:03:16]} Nd4 {[%emt 0:04:06]} 18. Qc1 {[%emt 0:09:56]} b5 {[%emt 0:05:04]} 19. Bxe6 {[%emt 0:07:59]} fxe6 {[%emt 0:01:53]} 20. Kh1 {[%emt 0:02:37]} Rae8 {[%emt 0:10:07]} 21. Nxd4 {[%emt 0:05:00]} cxd4 {[%emt 0:01:03]} 22. Ne2 {[%emt 0:00:31]} e5 {[%emt 0:03:10]} 23. Ng3 {[%emt 0:01:31]} Qe6 {[%emt 0:18:52]} 24. Bh6 {[%emt 0:01:05]} Re7 {[%emt 0:06:43]} 25. Qg5 {[%emt 0:02:26]} Nf4 {[%emt 0:02:15]} 26. Rae1 {[%emt 0:05:34]} Ref7 {[%emt 0:10:34]} 27. Qxf4 {[%emt 0:03:54]} Qxh6 {[%emt 0:00:36]} 28. Qxh6 {[%emt 0:00:10]} Bxh6 {[%emt 0:00:03]} 29. Rxe5 {[%emt 0:00:13]} Rc7 {[%emt 0:00:48]} 30. Nxf5 {[%emt 0:01:49]} Bg7 {[%emt 0:00:18]} 31. Re2 {[%emt 0:00:29]} Rcf7 {[%emt 0:00:27]} 32. g4 {[%emt 0:00:32]} h5 {[%emt 0:00:09]} 33. h3 {[%emt 0:00:08]} hxg4 {[%emt 0:00:06]} 34. hxg4 {[%emt 0:00:06]} Kh7 {[%emt 0:00:52]} 35. Re6 {[%emt 0:01:38]} Rc7 {[%emt 0:00:19]} 36. Rf2 {[%emt 0:00:23]} Rfc8 {[%emt 0:01:33]} 37. Rh2+ {[%emt 0:00:51]} Kg8 {[%emt 0:00:06]} 38. Re7 {[%emt 0:00:54]} Kf8 {[%emt 0:00:22]} 39. Rxg7 {[%emt 0:00:49]} Rxg7 {[%emt 0:00:11]} 40. Rh8+ {[%emt 0:00:08]} 1-0

[Event "FIDE WSTC Open 50 2025"]
[Site "Prague"]
[Date "2025.02.20"]
[Round "4.37"]
[White "Aagaard, Jacob"]
[Black "Frenken, Marcel"]
[Result "1/2-1/2"]
[Annotator "RC"]
[ECO "B80"]
[WhiteElo "2435"]
[BlackElo "2064"]
[PlyCount "32"]
[EventDate "2025.02.17"]
[EventType "team-tourn"]
[EventCountry "CZE"]
[SourceTitle "playchess.com"]
[Source "ChessBase"]
[SourceQuality "1"]
[TimeControl "40/5400+30:1800+30"]

1. e4 {[%emt 0:01:28]} c5 {[%emt 0:00:05]} 2. Nf3 {[%emt 0:00:10]} e6 {[%emt 0:00:05]} 3. d4 {[%emt 0:01:36]} cxd4 {[%emt 0:00:06]} 4. Nxd4 {[%emt 0:00:08]} Nf6 {[%emt 0:00:05]} 5. Nc3 {[%emt 0:00:20]} d6 {[%emt 0:00:05]} 6. Be3 {[%emt 0:02:04]} a6 {[%emt 0:00:07]} 7. Qf3 {[%emt 0:00:13]} Nbd7 {[%emt 0:07:33]} 8. Be2 {[%emt 0:03:26]} Qc7 {[%emt 0:00:43]} 9. g4 {[%emt 0:09:47]} Ne5 {[%emt 0:07:59]} 10. Qh3 {[%emt 0:01:21]} Nc4 {[%emt 0:02:31]} 11. Bc1 {[%emt 0:07:51]} Qc5 {[%emt 0:34:51]} 12. Nb3 {[%emt 0:07:30]} Qc6 {[%emt 0:00:19]} 13. Nd4 {[%emt 0:08:23]} Qc5 {[%emt 0:00:09]} 14. Nb3 {[%emt 0:00:07]} Qc6 {[%emt 0:00:06]} 15. Nd4 {[%emt 0:00:49]} Qc5 {[%emt 0:00:09]} 16. Nb3 {[%emt 0:00:08]} Qc6 {[%emt 0:00:07]} 1/2-1/2

[Event "FIDE WSTC Open 50 2025"]
[Site "Prague"]
[Date "2025.02.20"]
[Round "4.38"]
[White "Van der Zwet, Bart"]
[Black "Jaksland, Tim"]
[Result "1/2-1/2"]
[Annotator "NA"]
[ECO "D02"]
[WhiteElo "1998"]
[BlackElo "2143"]
[PlyCount "36"]
[EventDate "2025.02.17"]
[EventType "team-tourn"]
[EventCountry "CZE"]
[SourceTitle "playchess.com"]
[Source "ChessBase"]
[SourceQuality "1"]
[TimeControl "40/5400+30:1800+30"]

1. d4 {[%emt 0:00:04]} Nf6 {[%emt 0:00:26]} 2. Nf3 {[%emt 0:00:26]} d5 {[%emt 0:00:56]} 3. Bf4 {[%emt 0:03:23]} c5 {[%emt 0:02:36]} 4. e3 {[%emt 0:02:15]} Nc6 {[%emt 0:00:30]} 5. c3 {[%emt 0:00:23]} e6 {[%emt 0:14:05]} 6. Nbd2 {[%emt 0:02:24]} Bd6 {[%emt 0:03:22]} 7. Bxd6 {[%emt 0:01:34]} Qxd6 {[%emt 0:00:06]} 8. Bd3 {[%emt 0:01:00]} O-O {[%emt 0:02:03]} 9. O-O {[%emt 0:08:18]} e5 {[%emt 0:02:16]} 10. dxe5 {[%emt 0:02:06]} Nxe5 {[%emt 0:00:06]} 11. Nxe5 {[%emt 0:00:34]} Qxe5 {[%emt 0:00:06]} 12. Nf3 {[%emt 0:02:37]} Qe7 {[%emt 0:01:45]} 13. h3 {[%emt 0:03:44]} h6 {[%emt 0:03:18]} 14. Qc2 {[%emt 0:01:24]} Be6 {[%emt 0:11:23]} 15. Bf5 {[%emt 0:04:27]} Rfd8 {[%emt 0:02:36]} 16. Bxe6 {[%emt 0:00:34]} Qxe6 {[%emt 0:00:20]} 17. Rfd1 {[%emt 0:03:55]} Ne4 {[%emt 0:08:00]} 18. Rd3 {[%emt 0:01:40]} Rd6 {[%emt 0:15:31]} 1/2-1/2

[Event "FIDE WSTC Open 50 2025"]
[Site "Prague"]
[Date "2025.02.20"]
[Round "4.39"]
[White "Nordenbaek, Jan"]
[Black "Mengerink, Ynze"]
[Result "1/2-1/2"]
[Annotator "ChessBase"]
[ECO "B12"]
[WhiteElo "2192"]
[BlackElo "2101"]
[PlyCount "42"]
[EventDate "2025.02.17"]
[EventType "team-tourn"]
[EventCountry "CZE"]
[SourceTitle "playchess.com"]
[Source "ChessBase"]
[SourceQuality "1"]
[TimeControl "40/5400+30:1800+30"]

1. e4 {[%emt 0:00:29]} c6 {[%emt 0:00:04]} 2. d4 {[%emt 0:00:28]} d5 {[%emt 0:00:03]} 3. e5 {[%emt 0:00:41]} Bf5 {[%emt 0:00:14]} 4. Nf3 {[%emt 0:00:21]} e6 {[%emt 0:00:06]} 5. Be2 {[%emt 0:00:03]} Nd7 {[%emt 0:00:23]} 6. O-O {[%emt 0:00:06]} h6 {[%emt 0:00:18]} 7. Nbd2 {[%emt 0:01:47]} Ne7 {[%emt 0:00:10]} 8. a4 {[%emt 0:00:22]} Qc7 {[%emt 0:01:18]} 9. Nb3 {[%emt 0:01:12]} Bg6 {[%emt 0:09:26]} 10. Re1 {[%emt 0:05:38]} Nf5 {[%emt 0:00:19]} 11. g4 {[%emt 0:01:39]} Ne7 {[%emt 0:00:06]} 12. Nh4 {[%emt 0:00:46]} Bh7 {[%emt 0:03:21]} 13. f4 {[%emt 0:01:29]} O-O-O {[%emt 0:13:27]} 14. Bd3 {[%emt 0:07:27]} Bxd3 {[%emt 0:02:26]} 15. cxd3 {[%emt 0:00:30]} h5 {[%emt 0:05:10]} 16. gxh5 {[%emt 0:04:37]} g6 {[%emt 0:00:48]} 17. Nf3 {[%emt 0:00:16]} Rxh5 {[%emt 0:04:27]} 18. Ng5 {[%emt 0:00:31]} Nf5 {[%emt 0:01:25]} 19. Nxf7 {[%emt 0:02:13]} Re8 {[%emt 0:11:28]} 20. a5 {[%emt 0:08:11]} Be7 {[%emt 0:06:31]} 21. Re2 {[%emt 0:02:12]} Rh7 {[%emt 0:07:45]} 1/2-1/2

[Event "FIDE WSTC Open 50 2025"]
[Site "Prague"]
[Date "2025.02.20"]
[Round "4.40"]
[White "Merx, Bob"]
[Black "Nielsen, Niels-Peter"]
[Result "1/2-1/2"]
[Annotator "NA"]
[ECO "B10"]
[WhiteElo "1968"]
[BlackElo "2086"]
[PlyCount "30"]
[EventDate "2025.02.17"]
[EventType "team-tourn"]
[EventCountry "CZE"]
[SourceTitle "playchess.com"]
[Source "ChessBase"]
[SourceQuality "1"]
[TimeControl "40/5400+30:1800+30"]

1. e4 {[%emt 0:00:30]} c6 {[%emt 0:00:02]} 2. d3 {[%emt 0:00:00]} d5 {[%emt 0:00:16]} 3. Nd2 {[%emt 0:00:00]} dxe4 {[%emt 0:04:21]} 4. dxe4 {[%emt 0:00:02]} Nf6 {[%emt 0:02:37]} 5. Ngf3 {[%emt 0:04:24]} Bg4 {[%emt 0:01:55]} 6. Be2 {[%emt 0:06:52]} Nbd7 {[%emt 0:03:21]} 7. O-O {[%emt 0:07:46]} Qc7 {[%emt 0:03:02]} 8. c3 {[%emt 0:05:56]} e6 {[%emt 0:03:10]} 9. Qc2 {[%emt 0:08:16]} Be7 {[%emt 0:05:22]} 10. a4 {[%emt 0:04:37]} O-O {[%emt 0:02:45]} 11. Re1 {[%emt 0:02:52]} Rfd8 {[%emt 0:02:07]} 12. Nf1 {[%emt 0:08:12]} Nc5 {[%emt 0:04:29]} 13. Ng3 {[%emt 0:05:32]} Nh5 {[%emt 0:07:15]} 14. Nd4 {[%emt 0:08:47]} Bxe2 {[%emt 0:03:27]} 15. Qxe2 {[%emt 0:05:17]} Nxg3 {[%emt 0:02:40]} 1/2-1/2

[Event "FIDE WSTC Open 50 2025"]
[Site "Prague"]
[Date "2025.02.21"]
[Round "5.1"]
[White "Kazhgaleyev, Murtas"]
[Black "David, Alberto"]
[Result "1/2-1/2"]
[Annotator "ChessBase"]
[ECO "E46"]
[WhiteElo "2495"]
[BlackElo "2467"]
[PlyCount "32"]
[EventDate "2025.02.17"]
[EventType "team-tourn"]
[EventCountry "CZE"]
[SourceTitle "playchess.com"]
[Source "ChessBase"]
[SourceQuality "1"]
[TimeControl "40/5400+30:1800+30"]

1. d4 {[%emt 0:00:04]} Nf6 {[%emt 0:00:12]} 2. c4 {[%emt 0:00:03]} e6 {[%emt 0:00:06]} 3. Nc3 {[%emt 0:00:03]} Bb4 {[%emt 0:00:07]} 4. e3 {[%emt 0:00:06]} O-O {[%emt 0:00:22]} 5. Bd2 {[%emt 0:00:04]} d5 {[%emt 0:05:41]} 6. Nf3 {[%emt 0:00:12]} b6 {[%emt 0:00:52]} 7. cxd5 {[%emt 0:00:12]} exd5 {[%emt 0:00:06]} 8. Bd3 {[%emt 0:00:04]} Be7 {[%emt 0:06:11]} 9. O-O {[%emt 0:06:25]} c5 {[%emt 0:01:26]} 10. Ne5 {[%emt 0:04:18]} Bb7 {[%emt 0:01:35]} 11. Qf3 {[%emt 0:17:08]} Nc6 {[%emt 0:06:38]} 12. Rfd1 {[%emt 0:03:01]} g6 {[%emt 0:18:50]} 13. Bb5 {[%emt 0:12:26]} Qd6 {[%emt 0:07:28]} 14. Nxc6 {[%emt 0:10:15]} Bxc6 {[%emt 0:01:12]} 15. dxc5 {[%emt 0:01:41]} bxc5 {[%emt 0:00:13]} 16. Bxc6 {[%emt 0:00:49]} Qxc6 {[%emt 0:00:42]} 1/2-1/2

[Event "FIDE WSTC Open 50 2025"]
[Site "Prague"]
[Date "2025.02.21"]
[Round "5.7"]
[White "Holemar, David"]
[Black "Stohl, Igor"]
[Result "1/2-1/2"]
[Annotator "ChessBase"]
[ECO "A46"]
[WhiteElo "2150"]
[BlackElo "2409"]
[PlyCount "21"]
[EventDate "2025.02.17"]
[EventType "team-tourn"]
[EventCountry "CZE"]
[SourceTitle "playchess.com"]
[Source "ChessBase"]
[SourceQuality "1"]
[TimeControl "40/5400+30:1800+30"]

1. d4 {[%emt 0:00:03]} Nf6 {[%emt 0:00:40]} 2. Nf3 {[%emt 0:00:09]} d5 {[%emt 0:00:24]} 3. c4 {[%emt 0:01:26]} e6 {[%emt 0:01:30]} 4. e3 {[%emt 0:01:40]} a6 {[%emt 0:03:10]} 5. Nc3 {[%emt 0:02:20]} c5 {[%emt 0:00:52]} 6. a3 {[%emt 0:06:50]} dxc4 {[%emt 0:02:54]} 7. Bxc4 {[%emt 0:00:12]} b5 {[%emt 0:00:27]} 8. Bb3 {[%emt 0:01:18]} Bb7 {[%emt 0:00:44]} 9. O-O {[%emt 0:00:24]} Nbd7 {[%emt 0:04:42]} 10. Qe2 {[%emt 0:09:09]} Be7 {[%emt 0:18:18]} 11. Rd1 {[%emt 0:00:15]} 1/2-1/2

[Event "FIDE WSTC Open 50 2025"]
[Site "Prague"]
[Date "2025.02.21"]
[Round "5.19"]
[White "Varga, Zoltan"]
[Black "Olafsson, Helgi"]
[Result "1/2-1/2"]
[Annotator "RC"]
[ECO "C10"]
[WhiteElo "2301"]
[BlackElo "2466"]
[PlyCount "22"]
[EventDate "2025.02.17"]
[EventType "team-tourn"]
[EventCountry "CZE"]
[SourceTitle "playchess.com"]
[Source "ChessBase"]
[SourceQuality "1"]
[TimeControl "40/5400+30:1800+30"]

1. e4 {[%emt 0:00:03]} e6 {[%emt 0:00:12]} 2. d4 {[%emt 0:00:34]} d5 {[%emt 0:00:06]} 3. Nc3 {[%emt 0:03:22]} dxe4 {[%emt 0:00:29]} 4. Nxe4 {[%emt 0:00:07]} Nd7 {[%emt 0:00:04]} 5. Nf3 {[%emt 0:00:33]} Ngf6 {[%emt 0:00:06]} 6. Nxf6+ {[%emt 0:01:31]} Nxf6 {[%emt 0:00:09]} 7. Be3 {[%emt 0:01:05]} Bd6 {[%emt 0:00:19]} 8. g3 {[%emt 0:07:23]} b6 {[%emt 0:00:39]} 9. Bb5+ {[%emt 0:13:30]} Bd7 {[%emt 0:00:47]} 10. Qe2 {[%emt 0:00:09]} Bxb5 {[%emt 0:02:14]} 11. Qxb5+ {[%emt 0:00:05]} Qd7 {[%emt 0:00:07]} 1/2-1/2

[Event "FIDE WSTC Open 50 2025"]
[Site "Prague"]
[Date "2025.02.21"]
[Round "5.27"]
[White "Roobol, Martin"]
[Black "Guiot Dorel, Jerome"]
[Result "1/2-1/2"]
[Annotator "ChessBase"]
[ECO "B24"]
[WhiteElo "2242"]
[BlackElo "2030"]
[PlyCount "28"]
[EventDate "2025.02.17"]
[EventType "team-tourn"]
[EventCountry "CZE"]
[SourceTitle "playchess.com"]
[Source "ChessBase"]
[SourceQuality "1"]
[TimeControl "40/5400+30:1800+30"]

1. e4 {[%emt 0:00:04]} c5 {[%emt 0:00:15]} 2. Nc3 {[%emt 0:00:08]} Nc6 {[%emt 0:00:26]} 3. Bb5 {[%emt 0:00:17]} Nd4 {[%emt 0:00:36]} 4. Nf3 {[%emt 0:00:23]} a6 {[%emt 0:01:59]} 5. Bd3 {[%emt 0:00:21]} g6 {[%emt 0:02:09]} 6. Nxd4 {[%emt 0:03:00]} cxd4 {[%emt 0:00:09]} 7. Ne2 {[%emt 0:00:03]} d5 {[%emt 0:01:47]} 8. c3 {[%emt 0:12:23]} dxe4 {[%emt 0:00:57]} 9. Bxe4 {[%emt 0:00:05]} d3 {[%emt 0:01:12]} 10. Qa4+ {[%emt 0:14:49]} Bd7 {[%emt 0:00:45]} 11. Qd4 {[%emt 0:00:06]} dxe2 {[%emt 0:10:01]} 12. Qxh8 {[%emt 0:00:13]} Nf6 {[%emt 0:00:08]} 13. Bxb7 {[%emt 0:05:04]} Rb8 {[%emt 0:10:37]} 14. Bxa6 {[%emt 0:25:24]} Bc6 {[%emt 0:06:40]} 1/2-1/2

[Event "FIDE WSTC Open 50 2025"]
[Site "Prague"]
[Date "2025.02.21"]
[Round "5.31"]
[White "Mengerink, Ynze"]
[Black "Guo, Yun"]
[Result "1/2-1/2"]
[Annotator "ChessBase"]
[ECO "B00"]
[WhiteElo "2101"]
[BlackElo "2213"]
[PlyCount "23"]
[EventDate "2025.02.17"]
[EventType "team-tourn"]
[EventCountry "CZE"]
[SourceTitle "playchess.com"]
[Source "ChessBase"]
[SourceQuality "1"]
[TimeControl "40/5400+30:1800+30"]

1. e4 {[%emt 0:00:03]} Nc6 {[%emt 0:00:09]} 2. Nc3 {[%emt 0:00:10]} d6 {[%emt 0:00:30]} 3. d4 {[%emt 0:00:22]} e5 {[%emt 0:01:00]} 4. Nf3 {[%emt 0:00:54]} Bg4 {[%emt 0:00:43]} 5. Bb5 {[%emt 0:06:49]} exd4 {[%emt 0:06:33]} 6. Qxd4 {[%emt 0:02:02]} a6 {[%emt 0:00:18]} 7. Bxc6+ {[%emt 0:01:26]} bxc6 {[%emt 0:00:05]} 8. Qd3 {[%emt 0:05:08]} Qf6 {[%emt 0:14:48]} 9. Bg5 {[%emt 0:12:38]} Qg6 {[%emt 0:02:05]} 10. Bf4 {[%emt 0:00:23]} Be7 {[%emt 0:18:51]} 11. h3 {[%emt 0:20:01]} Bd7 {[%emt 0:06:42]} 12. O-O-O 1/2-1/2